Workbook

Sheet App.2-W_Bill Impacts - Res
N1: File Number: | T1: 2
N2: Exhibit:
N3: Tab:
N4: Schedule:
N5: Page:
N7: Date:
B10: Appendix 2-W
B11: Bill Impacts
B14: Customer Class: | D14: Residential
D16: Consumption | F16: 800 | G16: kWh
F18: Current Board-Approved | J18: Proposed | N18: Impact
D19: Charge Unit | F19: Rate | G19: Volume | H19: Charge | J19: Rate | K19: Volume | L19: Charge | N19: $ Change | O19: % Change
F20: ($) | H20: ($) | J20: ($) | L20: ($)
B21: Monthly Service Charge | F21: 11.46 | G21: 1 | H21: =G21*F21 -> 11.46 | J21: 11.83 | K21: 1 | L21: =K21*J21 -> 11.83 | N21: =L21-H21 -> 0.37 | O21: =IF((H21)=0,"",(N21/H21)) -> 0.03228621291
B22: Smart Meter Rate Adder | G22: 1 | H22: =G22*F22 -> 0 | K22: 1 | L22: =K22*J22 -> 0 | N22: =L22-H22 -> 0 | O22: =IF((H22)=0,"",(N22/H22)) -> 
B23: Smart Meter Disposition Rate Rider | G23: 1 | H23: 0 | J23: -0.48 | K23: 1 | L23: =K23*J23 -> -0.48 | N23: =L23-H23 -> -0.48 | O23: =IF((H23)=0,"",(N23/H23)) -> 
B24: Smart Metering Entity Charge | G24: 1 | H24: 0 | J24: 0.788 | K24: 1 | L24: 0.788 | N24: 0.788
B25: Stranded Meter Recovery Rate Rider | G25: 1 | H25: 0 | J25: 1.47 | K25: 1 | L25: 1.47 | N25: 1.47
G26: 1 | H26: 0 | K26: 1 | L26: 0 | N26: 0
B27: Distribution Volumetric Rate | F27: 0.0138 | G27: =$F$16 -> 800 | H27: 11.04 | J27: 0.0142 | K27: =$F$16 -> 800 | L27: 11.36 | N27: 0.32 | O27: 0.02898550725
G28: 1 | H28: 0 | K28: 1 | L28: 0 | N28: 0
B29: LRAM & SSM Rate Rider | F29: 0.0013 | G29: =$F$16 -> 800 | H29: 1.04 | J29: 0.0003 | K29: =$F$16 -> 800 | L29: 0.24 | N29: -0.8 | O29: -0.7692307692
B30: Tax change | F30: -0.0005 | G30: =$F$16 -> 800 | H30: -0.4 | K30: 800 | L30: 0 | N30: 0.4 | O30: =IF((H30)=0,"",(N30/H30)) -> -1
G31: 800 | H31: 0 | K31: 800 | L31: 0 | N31: 0
G32: 800 | H32: 0 | K32: 800 | L32: 0 | N32: 0
G33: 800 | H33: 0 | K33: 800 | L33: 0 | N33: 0
G34: 800 | H34: 0 | K34: 800 | L34: 0 | N34: 0
G35: 800 | H35: 0 | K35: 800 | L35: 0 | N35: 0
G36: 800 | H36: 0 | K36: 800 | L36: 0 | N36: 0
B37: Sub-Total A | H37: =SUM(H21:H36) -> 23.14 | L37: =SUM(L21:L36) -> 25.208 | N37: 2.068 | O37: 0.08936905791
B38: Deferral/Variance Account Disposition Rate Rider | F38: -0.007 | G38: =$F$16 -> 800 | H38: =G38*F38 -> -5.6 | J38: -0.005 | K38: =$F$16 -> 800 | L38: =K38*J38 -> -4 | N38: =L38-H38 -> 1.6 | O38: =IF((H38)=0,"",(N38/H38)) -> -0.2857142857
B39: Global Adjustment - Non RPP | G39: =$F$16 -> 800 | H39: =G39*F39 -> 0 | K39: =$F$16 -> 800 | L39: =K39*J39 -> 0 | N39: =L39-H39 -> 0 | O39: =IF((H39)=0,"",(N39/H39)) -> 
G40: 800 | H40: 0 | K40: 800 | L40: 0 | N40: 0
G41: 800 | H41: 0 | K41: 800 | L41: 0 | N41: 0
B42: Low Voltage Service Charge | G42: 800 | H42: =G42*F42 -> 0 | K42: 800 | L42: =K42*J42 -> 0 | N42: =L42-H42 -> 0 | O42: =IF((H42)=0,"",(N42/H42)) -> 
B43: Smart Meter Entity Charge | K43: 800 | L43: =K43*J43 -> 0 | N43: =L43-H43 -> 0
B44: Sub-Total B - Distribution (includes Sub-Total A) | H44: =SUM(H38:H42)+H37 -> 17.54 | L44: =SUM(L38:L42)+L37 -> 21.208 | N44: =L44-H44 -> 3.668 | O44: =IF((H44)=0,"",(N44/H44)) -> 0.2091220068
B45: RTSR - Network | F45: 0.008 | G45: =F16*(1+F71) -> 833.6 | H45: =G45*F45 -> 6.6688 | J45: 0.0075 | K45: =F16*(1+J71) -> 827.92 | L45: =K45*J45 -> 6.2094 | N45: -0.4594 | O45: -0.06888795585
B46: RTSR - Line and Transformation Connection | F46: 0.0055 | G46: =G45 -> 833.6 | H46: =G46*F46 -> 4.5848 | J46: 0.0053 | K46: =K45 -> 827.92 | L46: =K46*J46 -> 4.387976 | N46: -0.196824 | O46: -0.04292968068
B47: Sub-Total C - Delivery (including Sub-Total B) | H47: =SUM(H44:H46) -> 28.7936 | L47: =SUM(L44:L46) -> 31.805376 | N47: 3.011776 | O47: 0.1045987997
B48: Wholesale Market Service Charge (WMSC) | F48: 0.0044 | G48: =G46 -> 833.6 | H48: =G48*F48 -> 3.66784 | J48: 0.0044 | K48: =K46 -> 827.92 | L48: =K48*J48 -> 3.642848 | N48: -0.024992 | O48: -0.006813819578
B49: Rural and Remote Rate Protection (RRRP) | F49: 0.0012 | G49: =G46 -> 833.6 | H49: 1.00032 | J49: 0.0012 | K49: =K46 -> 827.92 | L49: 0.993504 | N49: -0.006816 | O49: -0.006813819578
B50: Standard Supply Service Charge | F50: 0.25 | G50: 1 | H50: 0.25 | J50: 0.25 | K50: 1 | L50: 0.25 | N50: 0 | O50: 0
B51: Debt Retirement Charge (DRC) | F51: 0.007 | G51: =G49 -> 833.6 | H51: 5.8352 | J51: 0.007 | K51: =K49 -> 827.92 | L51: 5.79544 | N51: -0.03976 | O51: =IF((H51)=0,"",(N51/H51)) -> -0.006813819578
B52: Energy - RPP - Tier 1 | F52: 0.078 | G52: =IF($T$1=1,IF($F$16>=600,600,IF($F$16<600,$F$16*(1+$F$71),$F$16-600)),IF($T$1=2,IF($F$16>=1000,1000,IF($F$16<1000,$F$16*(1+$F$71),$F$16-1000)))) -> 833.6 | H52: =G52*F52 -> 65.0208 | J52: 0.078 | K52: =IF($T$1=1,IF($F$16>=600,600,IF($F$16<600,$F$16*(1+$J$71),$F$16-600)),IF($T$1=2,IF($F$16>=1000,1000,IF($F$16<1000,$F$16*(1+$J$71),$F$16-1000)))) -> 827.92 | L52: =K52*J52 -> 64.57776 | N52: -0.44304 | O52: -0.006813819578
B53: Energy - RPP - Tier 2 | F53: 0.091 | G53: =IF($T$1=1,IF($F$16>=600,$F$16*(1+$F$71)-600,IF($F$16<600,0,)), IF($T$1=2,IF($F$16>=1000,$F$16*(1+$F$71)-1000,IF($F$16<1000,0)))) -> 0 | H53: =G53*F53 -> 0 | J53: 0.091 | K53: =IF($T$1=1,IF($F$16>=600,$F$16*(1+$J$71)-600,IF($F$16<600,0,)), IF($T$1=2,IF($F$16>=1000,$F$16*(1+$J$71)-1000,IF($F$16<1000,0)))) -> 0 | L53: =K53*J53 -> 0 | N53: 0
B54: TOU - Off Peak | F54: 0.067 | G54: =0.64*$F$16*(1+$F$71) -> 533.504 | H54: 35.744768 | J54: 0.067 | K54: =0.64*$F$16*(1+$J$71) -> 529.8688 | L54: 35.5012096 | N54: -0.2435584 | O54: -0.006813819578
B55: TOU - Mid Peak | F55: 0.104 | G55: =0.18*$F$16*(1+$F$71) -> 150.048 | H55: 15.604992 | J55: 0.104 | K55: =0.18*$F$16*(1+$J$71) -> 149.0256 | L55: 15.4986624 | N55: -0.1063296 | O55: -0.006813819578
B56: TOU - On Peak | F56: 0.124 | G56: =0.18*$F$16*(1+$F$71) -> 150.048 | H56: 18.605952 | J56: 0.124 | K56: =0.18*$F$16*(1+$J$71) -> 149.0256 | L56: 18.4791744 | N56: -0.1267776 | O56: -0.006813819578
B58: Total Bill on RPP (before Taxes) | H58: =SUM(H47:H53) -> 104.56776 | L58: =SUM(L47:L53) -> 107.064928 | N58: 2.497168 | O58: 0.02388085965
B59: HST | F59: 0.13 | H59: =H58*F59 -> 13.5938088 | J59: 0.13 | L59: =L58*J59 -> 13.91844064 | N59: 0.32463184 | O59: 0.02388085965
B60: Total Bill (including HST) | H60: =H58+H59 -> 118.1615688 | L60: =L58+L59 -> 120.9833686 | N60: 2.82179984 | O60: 0.02388085965
B61: Ontario Clean Energy Benefit 1 | H61: =ROUND(-H60*10%,2) -> -11.82 | L61: =ROUND(-L60*10%,2) -> -12.1 | N61: -0.28 | O61: 0.02368866328
B62: Total Bill on RPP (including OCEB) | H62: =SUM(H60:H61) -> 106.3415688 | L62: =SUM(L60:L61) -> 108.8833686 | N62: 2.54179984 | O62: 0.02390222251
B64: Total Bill on TOU (before Taxes) | H64: =SUM(H47:H51,H54:H56) -> 109.502672 | L64: =SUM(L47:L51,L54:L56) -> 111.9662144 | N64: =L64-H64 -> 2.4635424 | O64: =IF((H64)=0,"",(N64/H64)) -> 0.02249755513
B65: HST | F65: 0.13 | H65: =H64*F65 -> 14.23534736 | J65: 0.13 | L65: =L64*J65 -> 14.55560787 | N65: 0.320260512 | O65: 0.02249755513
B66: Total Bill (including HST) | H66: =H64+H65 -> 123.7380194 | L66: =L64+L65 -> 126.5218223 | N66: 2.783802912 | O66: 0.02249755513
B67: Ontario Clean Energy Benefit 1 | H67: =ROUND(-H66*10%,2) -> -12.37 | L67: =ROUND(-L66*10%,2) -> -12.65 | N67: -0.28 | O67: 0.02263540825
B68: Total Bill on TOU (including OCEB) | H68: =H66+H67 -> 111.3680194 | L68: =L66+L67 -> 113.8718223 | N68: 2.503802912 | O68: 0.02248224334
B71: Loss Factor (%) | F71: 0.042 | J71: 0.0349
A73: 1 Applicable to eligible customers only. Refer to the Ontario Clean Energy Benefit Act, 2010.
A75: Note that the "Charge $" columns provide breakdowns of the amounts that each bill component contributes to the total monthly bill at the referenced
A76: consumption level at existing and proposed rates.
A78: Applicants must provide bill impacts for residential at 800 kWh and GS<50kW at 2000 kWh. In addition, their filing should cover the range that is relevant
A79: to their service territory, class by class. A general guideline of consumption levels follows:
A81: Residential (kWh) - 100, 250, 500, 800, 1000, 1500, 2000
A82: GS<50kW (kWh) - 1000, 2000, 5000, 10000, 15000
A83: GS>50kW (kW) - 60, 100, 500, 1000
A84: Large User - range appropriate for utility
A85: Lighting Classes and USL - 150 kWh and 1 kW, range appropriate for utility.

Sheet App.2-W_Bill Impacts- GS<50
N1: File Number: | O1: EB-2012-0109 | T1: 2
N2: Exhibit: | O2: 8
N3: Tab: | O3: 1
N4: Schedule: | O4: 8
N5: Page: | O5: 53
N7: Date: | O7: July 17 2013
B10: Appendix 2-W
B11: Bill Impacts
B14: Customer Class: | D14: GS<50
D16: Consumption | F16: 2000 | G16: kWh
F18: Current Board-Approved | J18: Proposed | N18: Impact
D19: Charge Unit | F19: Rate | G19: Volume | H19: Charge | J19: Rate | K19: Volume | L19: Charge | N19: $ Change | O19: % Change
F20: ($) | H20: ($) | J20: ($) | L20: ($)
B21: Monthly Service Charge | F21: 24.81 | G21: 1 | H21: =G21*F21 -> 24.81 | J21: 25.66 | K21: 1 | L21: =K21*J21 -> 25.66 | N21: =L21-H21 -> 0.85 | O21: =IF((H21)=0,"",(N21/H21)) -> 0.03426037888
B22: Smart Meter Rate Adder | G22: 1 | H22: =G22*F22 -> 0 | K22: 1 | L22: =K22*J22 -> 0 | N22: =L22-H22 -> 0 | O22: =IF((H22)=0,"",(N22/H22)) -> 
B23: Smart Meter Disposition Rate Rider | G23: 1 | H23: 0 | J23: 2.9 | K23: 1 | L23: =K23*J23 -> 2.9 | N23: =L23-H23 -> 2.9 | O23: =IF((H23)=0,"",(N23/H23)) -> 
B24: Smart Metering Entity Charge | G24: 1 | H24: 0 | J24: 0.788 | K24: 1 | L24: 0.788 | N24: 0.788
B25: Stranded Meter Recovery Rate Rider | G25: 1 | H25: 0 | J25: 4.41 | K25: 1 | L25: 4.41 | N25: 4.41
G26: 1 | H26: 0 | K26: 1 | L26: 0 | N26: 0
B27: Distribution Volumetric Rate | F27: 0.0065 | G27: =$F$16 -> 2000 | H27: 13 | J27: ='[2]Distribution Rate Schedule'!$E$10 -> 0.0067 | K27: =$F$16 -> 2000 | L27: 13.4 | N27: 0.4 | O27: 0.03076923077
B28: Smart Meter Disposition Rider | G28: 1 | H28: 0 | K28: 1 | L28: 0 | N28: 0
B29: LRAM & SSM Rate Rider | F29: 0.0004 | G29: =$F$16 -> 2000 | H29: 0.8 | J29: 0.0003 | K29: =$F$16 -> 2000 | L29: 0.6 | N29: -0.2 | O29: -0.25
B30: Tax change | F30: -0.0002 | G30: =$F$16 -> 2000 | H30: -0.4 | K30: 2000 | L30: 0 | N30: 0.4 | O30: -1
G31: 2000 | H31: 0 | K31: 2000 | L31: 0 | N31: 0
G32: 2000 | H32: 0 | K32: 2000 | L32: 0 | N32: 0
G33: 2000 | H33: 0 | K33: 2000 | L33: 0 | N33: 0
G34: 2000 | H34: 0 | K34: 2000 | L34: 0 | N34: 0
G35: 2000 | H35: 0 | K35: 2000 | L35: 0 | N35: 0
G36: 2000 | H36: 0 | K36: 2000 | L36: 0 | N36: 0
B37: Sub-Total A | H37: =SUM(H21:H36) -> 38.21 | L37: =SUM(L21:L36) -> 47.758 | N37: 9.548 | O37: 0.2498822298
B38: Deferral/Variance Account Disposition Rate Rider | F38: -0.0052 | G38: =$F$16 -> 2000 | H38: =G38*F38 -> -10.4 | J38: -0.005 | K38: =$F$16 -> 2000 | L38: =K38*J38 -> -10 | N38: =L38-H38 -> 0.4 | O38: =IF((H38)=0,"",(N38/H38)) -> -0.03846153846
B39: Global Adjustment - Non RPP | G39: =$F$16 -> 2000 | H39: =G39*F39 -> 0 | K39: =$F$16 -> 2000 | L39: =K39*J39 -> 0 | N39: =L39-H39 -> 0 | O39: =IF((H39)=0,"",(N39/H39)) -> 
G40: 2000 | H40: 0 | K40: 2000 | L40: 0 | N40: 0
G41: 2000 | H41: 0 | K41: 2000 | L41: 0 | N41: 0
B42: Low Voltage Service Charge | G42: 2000 | H42: =G42*F42 -> 0 | K42: 2000 | L42: =K42*J42 -> 0 | N42: =L42-H42 -> 0 | O42: =IF((H42)=0,"",(N42/H42)) -> 
B43: Smart Meter Entity Charge | K43: 2000 | L43: =K43*J43 -> 0 | N43: =L43-H43 -> 0
B44: Sub-Total B - Distribution (includes Sub-Total A) | H44: =SUM(H38:H42)+H37 -> 27.81 | L44: =SUM(L38:L42)+L37 -> 37.758 | N44: =L44-H44 -> 9.948 | O44: =IF((H44)=0,"",(N44/H44)) -> 0.3577130529
B45: RTSR - Network | F45: 0.0072 | G45: =F16*(1+F71) -> 2084 | H45: =G45*F45 -> 15.0048 | J45: 0.0067 | K45: =F16*(1+J71) -> 2069.8 | L45: =K45*J45 -> 13.86766 | N45: -1.13714 | O45: -0.07578508211
B46: RTSR - Line and Transformation Connection | F46: 0.0048 | G46: =G45 -> 2084 | H46: =G46*F46 -> 10.0032 | J46: 0.0046 | K46: =K45 -> 2069.8 | L46: =K46*J46 -> 9.52108 | N46: -0.48212 | O46: -0.0481965771
B47: Sub-Total C - Delivery (including Sub-Total B) | H47: =SUM(H44:H46) -> 52.818 | L47: =SUM(L44:L46) -> 61.14674 | N47: 8.32874 | O47: 0.1576875308
B48: Wholesale Market Service Charge (WMSC) | F48: 0.0044 | G48: =G46 -> 2084 | H48: =G48*F48 -> 9.1696 | J48: 0.0044 | K48: =K46 -> 2069.8 | L48: =K48*J48 -> 9.10712 | N48: -0.06248 | O48: -0.006813819578
B49: Rural and Remote Rate Protection (RRRP) | F49: 0.0012 | G49: =G46 -> 2084 | H49: 2.5008 | J49: 0.0012 | K49: =K46 -> 2069.8 | L49: 2.48376 | N49: -0.01704 | O49: -0.006813819578
B50: Standard Supply Service Charge | F50: 0.25 | G50: 1 | H50: 0.25 | J50: 0.25 | K50: 1 | L50: 0.25 | N50: 0 | O50: 0
B51: Debt Retirement Charge (DRC) | F51: 0.007 | G51: =G49 -> 2084 | H51: 14.588 | J51: 0.007 | K51: =K49 -> 2069.8 | L51: 14.4886 | N51: -0.0994 | O51: =IF((H51)=0,"",(N51/H51)) -> -0.006813819578
B52: Energy - RPP - Tier 1 | F52: 0.078 | G52: =IF($T$1=1,IF($F$16>=600,600,IF($F$16<600,$F$16*(1+$F$71),$F$16-600)),IF($T$1=2,IF($F$16>=1000,1000,IF($F$16<1000,$F$16*(1+$F$71),$F$16-1000)))) -> 1000 | H52: =G52*F52 -> 78 | J52: 0.078 | K52: =IF($T$1=1,IF($F$16>=600,600,IF($F$16<600,$F$16*(1+$J$71),$F$16-600)),IF($T$1=2,IF($F$16>=1000,1000,IF($F$16<1000,$F$16*(1+$J$71),$F$16-1000)))) -> 1000 | L52: =K52*J52 -> 78 | N52: 0 | O52: 0
B53: Energy - RPP - Tier 2 | F53: 0.091 | G53: =IF($T$1=1,IF($F$16>=600,$F$16*(1+$F$71)-600,IF($F$16<600,0,)), IF($T$1=2,IF($F$16>=1000,$F$16*(1+$F$71)-1000,IF($F$16<1000,0)))) -> 1084 | H53: =G53*F53 -> 98.644 | J53: 0.091 | K53: =IF($T$1=1,IF($F$16>=600,$F$16*(1+$J$71)-600,IF($F$16<600,0,)), IF($T$1=2,IF($F$16>=1000,$F$16*(1+$J$71)-1000,IF($F$16<1000,0)))) -> 1069.8 | L53: =K53*J53 -> 97.3518 | N53: -1.2922 | O53: -0.013099631
B54: TOU - Off Peak | F54: 0.067 | G54: =0.64*$F$16*(1+$F$71) -> 1333.76 | H54: 89.36192 | J54: 0.067 | K54: =0.64*$F$16*(1+$J$71) -> 1324.672 | L54: 88.753024 | N54: -0.608896 | O54: -0.006813819578
B55: TOU - Mid Peak | F55: 0.104 | G55: =0.18*$F$16*(1+$F$71) -> 375.12 | H55: 39.01248 | J55: 0.104 | K55: =0.18*$F$16*(1+$J$71) -> 372.564 | L55: 38.746656 | N55: -0.265824 | O55: -0.006813819578
B56: TOU - On Peak | F56: 0.124 | G56: =0.18*$F$16*(1+$F$71) -> 375.12 | H56: 46.51488 | J56: 0.124 | K56: =0.18*$F$16*(1+$J$71) -> 372.564 | L56: 46.197936 | N56: -0.316944 | O56: -0.006813819578
B58: Total Bill on RPP (before Taxes) | H58: =SUM(H47:H53) -> 255.9704 | L58: =SUM(L47:L53) -> 262.82802 | N58: 6.85762 | O58: 0.0267906758
B59: HST | F59: 0.13 | H59: =H58*F59 -> 33.276152 | J59: 0.13 | L59: =L58*J59 -> 34.1676426 | N59: 0.8914906 | O59: 0.0267906758
B60: Total Bill (including HST) | H60: =H58+H59 -> 289.246552 | L60: =L58+L59 -> 296.9956626 | N60: 7.7491106 | O60: 0.0267906758
B61: Ontario Clean Energy Benefit 1 | H61: =ROUND(-H60*10%,2) -> -28.92 | L61: =ROUND(-L60*10%,2) -> -29.7 | N61: -0.78 | O61: 0.02697095436
B62: Total Bill on RPP (including OCEB) | H62: =SUM(H60:H61) -> 260.326552 | L62: =SUM(L60:L61) -> 267.2956626 | N62: 6.9691106 | O62: 0.02677064843
B64: Total Bill on TOU (before Taxes) | H64: =SUM(H47:H51,H54:H56) -> 254.21568 | L64: =SUM(L47:L51,L54:L56) -> 261.173836 | N64: =L64-H64 -> 6.958156 | O64: =IF((H64)=0,"",(N64/H64)) -> 0.02737107326
B65: HST | F65: 0.13 | H65: =H64*F65 -> 33.0480384 | J65: 0.13 | L65: =L64*J65 -> 33.95259868 | N65: 0.90456028 | O65: 0.02737107326
B66: Total Bill (including HST) | H66: =H64+H65 -> 287.2637184 | L66: =L64+L65 -> 295.1264347 | N66: 7.86271628 | O66: 0.02737107326
B67: Ontario Clean Energy Benefit 1 | H67: =ROUND(-H66*10%,2) -> -28.73 | L67: =ROUND(-L66*10%,2) -> -29.51 | N67: -0.78 | O67: 0.02714932127
B68: Total Bill on TOU (including OCEB) | H68: =H66+H67 -> 258.5337184 | L68: =L66+L67 -> 265.6164347 | N68: 7.08271628 | O68: 0.02739571582
B71: Loss Factor (%) | F71: 0.042 | J71: 0.0349
A73: 1 Applicable to eligible customers only. Refer to the Ontario Clean Energy Benefit Act, 2010.
A75: Note that the "Charge $" columns provide breakdowns of the amounts that each bill component contributes to the total monthly bill at the referenced
A76: consumption level at existing and proposed rates.
A78: Applicants must provide bill impacts for residential at 800 kWh and GS<50kW at 2000 kWh. In addition, their filing should cover the range that is relevant
A79: to their service territory, class by class. A general guideline of consumption levels follows:
A81: Residential (kWh) - 100, 250, 500, 800, 1000, 1500, 2000
A82: GS<50kW (kWh) - 1000, 2000, 5000, 10000, 15000
A83: GS>50kW (kW) - 60, 100, 500, 1000
A84: Large User - range appropriate for utility
A85: Lighting Classes and USL - 150 kWh and 1 kW, range appropriate for utility.

Sheet App.2-W_Bill Impacts - GS>50
N1: File Number: | O1: =#REF! ->  | T1: 5
N2: Exhibit: | O2: 8
N3: Tab: | O3: 1
N4: Schedule: | O4: 8
N5: Page: | O5: 54
N7: Date: | O7: July 17,2013
B10: Appendix 2-W
B11: Bill Impacts
B14: Customer Class: | D14: GS>50
D16: Consumption | F16: 100 | G16: kW
D17: Consumption | F17: =ROUND(F16*1/0.002542,0) -> 39339 | G17: kWh
F19: Current Board-Approved | J19: Proposed | N19: Impact
D20: Charge Unit | F20: Rate | G20: Volume | H20: Charge | J20: Rate | K20: Volume | L20: Charge | N20: $ Change | O20: % Change
F21: ($) | H21: ($) | J21: ($) | L21: ($)
B22: Monthly Service Charge | D22: Monthly | F22: 293.71 | G22: 1 | H22: =G22*F22 -> 293.71 | J22: ='[2]Distribution Rate Schedule'!$C$12 -> 225 | K22: =G22 -> 1 | L22: =K22*J22 -> 225 | N22: =L22-H22 -> -68.71 | O22: =IF((H22)=0,"",(N22/H22)) -> -0.2339382384
B23: Smart Meter Rate Adder | D23: Monthly | G23: 1 | H23: =G23*F23 -> 0 | K23: =G23 -> 1 | L23: =K23*J23 -> 0 | N23: =L23-H23 -> 0 | O23: =IF((H23)=0,"",(N23/H23)) -> 
G24: 1 | H24: 0 | K24: =G24 -> 1 | L24: =K24*J24 -> 0 | N24: =L24-H24 -> 0 | O24: =IF((H24)=0,"",(N24/H24)) -> 
G25: 1 | H25: 0 | K25: =G25 -> 1 | L25: 0 | N25: 0
G26: 1 | H26: 0 | K26: 1 | L26: 0 | N26: 0
G27: 1 | H27: 0 | K27: 1 | L27: 0 | N27: 0
B28: Distribution Volumetric Rate | D28: per kW | F28: 2.6043 | G28: =F16 -> 100 | H28: 260.43 | J28: 2.9678 | K28: 100 | L28: 296.78 | N28: 36.35 | O28: =IF((H28)=0,"",(N28/H28)) -> 0.1395768537
B29: Smart Meter Disposition Rider | D29: Monthly | G29: 1 | H29: 0 | K29: 1 | L29: 0 | N29: 0
B30: LRAM & SSM Rate Rider | D30: per kW | F30: 0.0633 | G30: =F16 -> 100 | H30: 6.33 | J30: 0.0187 | K30: 100 | L30: 1.87 | N30: -4.46 | O30: -0.7045813586
B31: Tax change | D31: per kW | F31: -0.0609 | G31: =F16 -> 100 | H31: -6.09 | K31: 100 | L31: 0 | N31: 6.09 | O31: -1
H32: 0 | K32: 0 | L32: 0 | N32: 0
H33: 0 | K33: 0 | L33: 0 | N33: 0
H34: 0 | K34: 0 | L34: 0 | N34: 0
H35: 0 | K35: 0 | L35: 0 | N35: 0
H36: 0 | K36: 0 | L36: 0 | N36: 0
H37: 0 | K37: 0 | L37: 0 | N37: 0
B38: Sub-Total A | H38: =SUM(H22:H37) -> 554.38 | L38: =SUM(L22:L37) -> 523.65 | N38: -30.73 | O38: -0.05543129262
B39: Deferral/Variance Account Disposition Rate Rider | D39: per kW | F39: -1.8203 | G39: =F16 -> 100 | H39: =G39*F39 -> -182.03 | J39: -1.9701 | K39: =G39 -> 100 | L39: =K39*J39 -> -197.01 | N39: =L39-H39 -> -14.98 | O39: =IF((H39)=0,"",(N39/H39)) -> 0.08229412734
B40: Global Adjustment - Non RPP | D40: per kWh | F40: -0.579 | G40: =F16 -> 100 | H40: =G40*F40 -> -57.9 | J40: 0.8471 | K40: =G40 -> 100 | L40: =K40*J40 -> 84.71 | N40: =L40-H40 -> 142.61 | O40: =IF((H40)=0,"",(N40/H40)) -> -2.463039724
H41: 0 | K41: 0 | L41: 0 | N41: 0
H42: 0 | K42: 0 | L42: 0 | N42: 0
B43: Low Voltage Service Charge | H43: =G43*F43 -> 0 | K43: 0 | L43: =K43*J43 -> 0 | N43: =L43-H43 -> 0 | O43: =IF((H43)=0,"",(N43/H43)) -> 
B44: Smart Meter Entity Charge | K44: 0 | L44: =K44*J44 -> 0 | N44: =L44-H44 -> 0
B45: Sub-Total B - Distribution (includes Sub-Total A) | H45: =SUM(H39:H43)+H38 -> 314.45 | L45: =SUM(L39:L43)+L38 -> 411.35 | N45: =L45-H45 -> 96.9 | O45: =IF((H45)=0,"",(N45/H45)) -> 0.3081570997
B46: RTSR - Network | D46: per kW | F46: 2.4601 | G46: =F16*(1+F70) -> 104.2 | H46: =G46*F46 -> 256.34242 | J46: 2.3036 | K46: =$F$16*(1+$J$70) -> 103.49 | L46: =K46*J46 -> 238.399564 | N46: -17.942856 | O46: -0.06999565659
B47: RTSR - Line and Transformation Connection | D47: per kW | F47: 1.6398 | G47: =G46 -> 104.2 | H47: =G47*F47 -> 170.86716 | J47: 1.5708 | K47: =$F$16*(1+$J$70) -> 103.49 | L47: =K47*J47 -> 162.562092 | N47: -8.305068 | O47: -0.04860540785
B48: Sub-Total C - Delivery (including Sub-Total B) | H48: =SUM(H45:H47) -> 741.65958 | L48: =SUM(L45:L47) -> 812.311656 | N48: =L48-H48 -> 70.652076 | O48: 0.0952621363
B49: Wholesale Market Service Charge (WMSC) | D49: per kWh | F49: 0.0044 | G49: =$F$17*(1+$F$70) -> 40991.238 | H49: =G49*F49 -> 180.3614472 | J49: 0.0044 | K49: =$F$17*(1+$J$70) -> 40711.9311 | L49: =K49*J49 -> 179.1324968 | N49: -1.22895036 | O49: -0.006813819578
B50: Rural and Remote Rate Protection (RRRP) | D50: per kWh | F50: 0.0012 | G50: =$F$17*(1+$F$70) -> 40991.238 | H50: 49.1894856 | J50: 0.0012 | K50: =$F$17*(1+$J$70) -> 40711.9311 | L50: 48.85431732 | N50: -0.33516828 | O50: -0.006813819578
B51: Standard Supply Service Charge | D51: Monthly | F51: 0.25 | G51: 1 | H51: 0.25 | J51: 0.25 | K51: =G51 -> 1 | L51: 0.25 | N51: 0 | O51: 0
B52: Debt Retirement Charge (DRC) | D52: per kWh | F52: 0.007 | G52: =$F$17*(1+$F$70) -> 40991.238 | H52: 286.938666 | J52: 0.007 | K52: =$F$17*(1+$J$70) -> 40711.9311 | L52: 284.9835177 | N52: -1.9551483 | O52: =IF((H52)=0,"",(N52/H52)) -> -0.006813819578
B53: Energy - RPP - Tier 1 | F53: 0.078 | G53: 0 | H53: =G53*F53 -> 0 | J53: 0.078 | K53: 0 | L53: =K53*J53 -> 0 | N53: 0
B54: Energy - RPP - Tier 2 | F54: 0.091 | G54: 0 | H54: =G54*F54 -> 0 | J54: 0.091 | K54: 0 | L54: =K54*J54 -> 0 | N54: 0
B55: Energy - COP | F55: 0.08545 | G55: =$F$17*(1+$F$70) -> 40991.238 | H55: =G55*F55 -> 3502.701287 | J55: 0.08545 | K55: =$F$17*(1+$J$70) -> 40711.9311 | L55: 3478.834512 | N55: -23.86677461 | O55: -0.006813819578
B57: Total Bill on RPP (before Taxes) | H57: =SUM(H48:H54) -> 1258.399179 | L57: =SUM(L48:L54) -> 1325.531988 | N57: 67.13280906 | O57: 0.05334778518
B58: HST | F58: 0.13 | H58: =H57*F58 -> 163.5918932 | J58: 0.13 | L58: =L57*J58 -> 172.3191584 | N58: 8.727265178 | O58: 0.05334778518
B59: Total Bill (including HST) | H59: =H57+H58 -> 1421.991072 | L59: =L57+L58 -> 1497.851146 | N59: 75.86007424 | O59: 0.05334778518
B60: Ontario Clean Energy Benefit 1 | H60: =ROUND(-H59*10%,2) -> -142.2 | L60: =ROUND(-L59*10%,2) -> -149.79 | N60: -7.59 | O60: 0.05337552743
B61: Total Bill on RPP (including OCEB) | H61: =SUM(H59:H60) -> 1279.791072 | L61: =SUM(L59:L60) -> 1348.061146 | N61: 68.27007424 | O61: 0.05334470269
B63: Total Bill | H63: =SUM(H48:H52,H55:H55) -> 4761.100466 | L63: =SUM(L48:L52,L55:L55) -> 4804.3665 | N63: =L63-H63 -> 43.26603445 | O63: =IF((H63)=0,"",(N63/H63)) -> 0.009087402117
B64: HST | F64: 0.13 | H64: =H63*F64 -> 618.9430606 | J64: 0.13 | L64: =L63*J64 -> 624.567645 | N64: 5.624584479 | O64: 0.009087402117
B65: Total Bill (including HST) | H65: =H63+H64 -> 5380.043526 | L65: =L63+L64 -> 5428.934145 | N65: 48.89061893 | O65: 0.009087402117
B66: Ontario Clean Energy Benefit 1 | H66: =ROUND(-H65*10%,2) -> -538 | L66: =ROUND(-L65*10%,2) -> -542.89 | N66: -4.89 | O66: 0.009089219331
B67: Total Bill (including OCEB) | H67: =H65+H66 -> 4842.043526 | L67: =L65+L66 -> 4886.044145 | N67: 44.00061893 | O67: 0.009087200207
B70: Loss Factor (%) | F70: 0.042 | J70: 0.0349
A72: 1 Applicable to eligible customers only. Refer to the Ontario Clean Energy Benefit Act, 2010.
A74: Note that the "Charge $" columns provide breakdowns of the amounts that each bill component contributes to the total monthly bill at the referenced
A75: consumption level at existing and proposed rates.
A77: Applicants must provide bill impacts for residential at 800 kWh and GS<50kW at 2000 kWh. In addition, their filing should cover the range that is relevant
A78: to their service territory, class by class. A general guideline of consumption levels follows:
A80: Residential (kWh) - 100, 250, 500, 800, 1000, 1500, 2000
A81: GS<50kW (kWh) - 1000, 2000, 5000, 10000, 15000
A82: GS>50kW (kW) - 60, 100, 500, 1000
A83: Large User - range appropriate for utility
A84: Lighting Classes and USL - 150 kWh and 1 kW, range appropriate for utility.

Sheet App.2-W_Bill Impacts - Sentinel
N1: File Number: | O1: =#REF! ->  | T1: 13
N2: Exhibit: | O2: 8
N3: Tab: | O3: 1
N4: Schedule: | O4: 8
N5: Page: | O5: 55
N7: Date: | O7: July 17,2013
B10: Appendix 2-W
B11: Bill Impacts
B14: Customer Class: | D14: Sentinel Lights
D16: Consumption | F16: 1 | G16: kW
D17: Consumption | F17: 150 | G17: kWh
F19: Current Board-Approved | J19: Proposed | N19: Impact
D20: Charge Unit | F20: Rate | G20: Volume | H20: Charge | J20: Rate | K20: Volume | L20: Charge | N20: $ Change | O20: % Change
F21: ($) | H21: ($) | J21: ($) | L21: ($)
B22: Monthly Service Charge | D22: Monthly | F22: 2.32 | G22: 1 | H22: =G22*F22 -> 2.32 | J22: 3.9273 | K22: =G22 -> 1 | L22: =K22*J22 -> 3.9273 | N22: =L22-H22 -> 1.6073 | O22: =IF((H22)=0,"",(N22/H22)) -> 0.6928017241
B23: Smart Meter Rate Adder | D23: Monthly | F23: 0 | G23: 1 | H23: =G23*F23 -> 0 | K23: =G23 -> 1 | L23: =K23*J23 -> 0 | N23: =L23-H23 -> 0 | O23: =IF((H23)=0,"",(N23/H23)) -> 
B24: Stranded Meter Recovery | G24: 1 | H24: 0 | K24: =G24 -> 1 | L24: =K24*J24 -> 0 | N24: =L24-H24 -> 0 | O24: =IF((H24)=0,"",(N24/H24)) -> 
G25: 1 | H25: 0 | K25: =G25 -> 1 | L25: 0 | N25: 0
G26: 1 | H26: 0 | K26: 1 | L26: 0 | N26: 0
G27: 1 | H27: 0 | K27: 1 | L27: 0 | N27: 0
B28: Distribution Volumetric Rate | D28: per kW | F28: 11.1228 | G28: =F16 -> 1 | H28: 11.1228 | J28: 18.8286 | K28: 1 | L28: 18.8286 | N28: 7.7058 | O28: =IF((H28)=0,"",(N28/H28)) -> 0.6927931816
B29: Smart Meter Disposition Rider | D29: Monthly | G29: 1 | H29: 0 | K29: 1 | L29: 0 | N29: 0
B30: LRAM & SSM Rate Rider | D30: per kW | G30: =F16 -> 1 | H30: 0 | K30: 1 | L30: 0 | N30: 0
B31: Tax change | D31: per kW | F31: -0.3971 | G31: =F16 -> 1 | H31: -0.3971 | K31: 1 | L31: 0 | N31: 0.3971 | O31: -1
H32: 0 | K32: 0 | L32: 0 | N32: 0
H33: 0 | K33: 0 | L33: 0 | N33: 0
H34: 0 | K34: 0 | L34: 0 | N34: 0
H35: 0 | K35: 0 | L35: 0 | N35: 0
H36: 0 | K36: 0 | L36: 0 | N36: 0
H37: 0 | K37: 0 | L37: 0 | N37: 0
B38: Sub-Total A | H38: =SUM(H22:H37) -> 13.0457 | L38: =SUM(L22:L37) -> 22.7559 | N38: 9.7102 | O38: 0.7443218838
B39: Deferral/Variance Account Disposition Rate Rider | D39: per kW | F39: -4.1579 | G39: =F16 -> 1 | H39: =G39*F39 -> -4.1579 | J39: -1.6401 | K39: =G39 -> 1 | L39: =K39*J39 -> -1.6401 | N39: 2.5178 | O39: =IF((H39)=0,"",(N39/H39)) -> -0.6055460689
B40: Global Adjustment - Non RPP | D40: per kW | F40: -0.441 | G40: =F16 -> 1 | H40: =G40*F40 -> -0.441 | J40: 0.7052 | K40: 1 | L40: 0.7052 | N40: 1.1462 | O40: =IF((H40)=0,"",(N40/H40)) -> -2.599092971
H41: =G41*F41 -> 0 | K41: 0 | L41: 0 | N41: 0 | O41: =IF((H41)=0,"",(N41/H41)) -> 
H42: =G42*F42 -> 0 | K42: 0 | L42: 0 | N42: 0 | O42: =IF((H42)=0,"",(N42/H42)) -> 
B43: Low Voltage Service Charge | H43: =G43*F43 -> 0 | K43: 0 | L43: 0 | N43: 0 | O43: =IF((H43)=0,"",(N43/H43)) -> 
B44: Smart Meter Entity Charge | K44: 0 | L44: 0 | N44: 0
B45: Sub-Total B - Distribution (includes Sub-Total A) | H45: =SUM(H39:H43)+H38 -> 8.4468 | L45: =SUM(L39:L43)+L38 -> 21.821 | N45: 13.3742 | O45: =IF((H45)=0,"",(N45/H45)) -> 1.583345172
B46: RTSR - Network | D46: per kW | F46: 2.2973 | G46: =F16*(1+F70) -> 1.042 | H46: =G46*F46 -> 2.3937866 | J46: 2.1511 | K46: =$F$16*(1+$J$70) -> 1.0349 | L46: =K46*J46 -> 2.22617339 | N46: -0.16761321 | O46: -0.07002011374
B47: RTSR - Line and Transformation Connection | D47: per kW | F47: 1.5315 | G47: =G46 -> 1.042 | H47: =G47*F47 -> 1.595823 | J47: 1.4671 | K47: =$F$16*(1+$J$70) -> 1.0349 | L47: =K47*J47 -> 1.51830179 | N47: -0.07752121 | O47: -0.04857757408
B48: Sub-Total C - Delivery (including Sub-Total B) | H48: =SUM(H45:H47) -> 12.4364096 | L48: =SUM(L45:L47) -> 25.56547518 | N48: 13.12906558 | O48: 1.055695816
B49: Wholesale Market Service Charge (WMSC) | D49: per kWh | F49: 0.0044 | G49: =$F$17*(1+$F$70) -> 156.3 | H49: =G49*F49 -> 0.68772 | J49: 0.0044 | K49: =$F$17*(1+$J$70) -> 155.235 | L49: =K49*J49 -> 0.683034 | N49: -0.004686 | O49: -0.006813819578
B50: Rural and Remote Rate Protection (RRRP) | D50: per kWh | F50: 0.0012 | G50: =$F$17*(1+$F$70) -> 156.3 | H50: 0.18756 | J50: 0.0012 | K50: =$F$17*(1+$J$70) -> 155.235 | L50: 0.186282 | N50: -0.001278 | O50: -0.006813819578
B51: Standard Supply Service Charge | D51: Monthly | F51: 0.25 | G51: 1 | H51: 0.25 | J51: 0.25 | K51: =G51 -> 1 | L51: 0.25 | N51: 0 | O51: 0
B52: Debt Retirement Charge (DRC) | D52: per kWh | F52: 0.007 | G52: =$F$17*(1+$F$70) -> 156.3 | H52: 1.0941 | J52: 0.007 | K52: =$F$17*(1+$J$70) -> 155.235 | L52: 1.086645 | N52: -0.007455 | O52: =IF((H52)=0,"",(N52/H52)) -> -0.006813819578
B53: Energy - RPP - Tier 1 | F53: 0.078 | G53: 0 | H53: =G53*F53 -> 0 | J53: 0.078 | K53: =G53 -> 0 | L53: =K53*J53 -> 0 | N53: 0
B54: Energy - RPP - Tier 2 | F54: 0.091 | G54: 0 | H54: =G54*F54 -> 0 | J54: 0.091 | K54: =G54 -> 0 | L54: =K54*J54 -> 0 | N54: 0
B55: Energy - COP | F55: 0.08545 | G55: =$F$17*(1+$F$70) -> 156.3 | H55: 13.355835 | J55: 0.08545 | K55: =$F$17*(1+$J$70) -> 155.235 | L55: 13.26483075 | N55: -0.09100425 | O55: -0.006813819578
B57: Total Bill on RPP (before Taxes) | H57: =SUM(H48:H54) -> 14.6557896 | L57: =SUM(L48:L54) -> 27.77143618 | N57: 13.11564658 | O57: 0.8949123137
B58: HST | F58: 0.13 | H58: =H57*F58 -> 1.905252648 | J58: 0.13 | L58: =L57*J58 -> 3.610286703 | N58: 1.705034055 | O58: 0.8949123137
B59: Total Bill (including HST) | H59: =H57+H58 -> 16.56104225 | L59: =L57+L58 -> 31.38172288 | N59: 14.82068064 | O59: 0.8949123137
B60: Ontario Clean Energy Benefit 1 | H60: =ROUND(-H59*10%,2) -> -1.66 | L60: =ROUND(-L59*10%,2) -> -3.14 | N60: -1.48 | O60: 0.8915662651
B61: Total Bill on RPP (including OCEB) | H61: =SUM(H59:H60) -> 14.90104225 | L61: =SUM(L59:L60) -> 28.24172288 | N61: 13.34068064 | O61: 0.8952850689
B63: Total Bill Impact | H63: =SUM(H48:H52,H55:H55) -> 28.0116246 | L63: =SUM(L48:L52,L55:L55) -> 41.03626693 | N63: =L63-H63 -> 13.02464233 | O63: =IF((H63)=0,"",(N63/H63)) -> 0.4649727574
B64: HST | F64: 0.13 | H64: =H63*F64 -> 3.641511198 | J64: 0.13 | L64: =L63*J64 -> 5.334714701 | N64: 1.693203503 | O64: 0.4649727574
B65: Total Bill (including HST) | H65: =H63+H64 -> 31.6531358 | L65: =L63+L64 -> 46.37098163 | N65: 14.71784583 | O65: 0.4649727574
B66: Ontario Clean Energy Benefit 1 | H66: =ROUND(-H65*10%,2) -> -3.17 | L66: =ROUND(-L65*10%,2) -> -4.64 | N66: -1.47 | O66: 0.4637223975
B67: Total Bill (including OCEB) | H67: =H65+H66 -> 28.4831358 | L67: =L65+L66 -> 41.73098163 | N67: 13.24784583 | O67: 0.4651119149
B70: Loss Factor (%) | F70: 0.042 | J70: 0.0349
A72: 1 Applicable to eligible customers only. Refer to the Ontario Clean Energy Benefit Act, 2010.
A74: Note that the "Charge $" columns provide breakdowns of the amounts that each bill component contributes to the total monthly bill at the referenced
A75: consumption level at existing and proposed rates.
A77: Applicants must provide bill impacts for residential at 800 kWh and GS<50kW at 2000 kWh. In addition, their filing should cover the range that is relevant
A78: to their service territory, class by class. A general guideline of consumption levels follows:
A80: Residential (kWh) - 100, 250, 500, 800, 1000, 1500, 2000
A81: GS<50kW (kWh) - 1000, 2000, 5000, 10000, 15000
A82: GS>50kW (kW) - 60, 100, 500, 1000
A83: Large User - range appropriate for utility
A84: Lighting Classes and USL - 150 kWh and 1 kW, range appropriate for utility.

Sheet App.2-W_Bill Impacts - Street
N1: File Number: | O1: =#REF! ->  | T1: 12
N2: Exhibit: | O2: 8
N3: Tab: | O3: 1
N4: Schedule: | O4: 8
N5: Page: | O5: 56
N7: Date: | O7: July 17,2013
B10: Appendix 2-W
B11: Bill Impacts
B14: Customer Class: | D14: Street lights
D16: Consumption | F16: 1 | G16: kW
D17: Consumption | F17: =ROUND(F16*1/0.003106,0) -> 322 | G17: kWh
F19: Current Board-Approved | J19: Proposed | N19: Impact
D20: Charge Unit | F20: Rate | G20: Volume | H20: Charge | J20: Rate | K20: Volume | L20: Charge | N20: $ Change | O20: % Change
F21: ($) | H21: ($) | J21: ($) | L21: ($)
B22: Monthly Service Charge | D22: Monthly | F22: 0.65 | G22: 1 | H22: =G22*F22 -> 0.65 | J22: ='[2]Distribution Rate Schedule'!$B$15 -> 0.6717 | K22: =G22 -> 1 | L22: =K22*J22 -> 0.6717 | N22: =L22-H22 -> 0.0217 | O22: =IF((H22)=0,"",(N22/H22)) -> 0.03338461538
B23: Smart Meter Rate Adder | D23: Monthly | G23: 1 | H23: =G23*F23 -> 0 | K23: =G23 -> 1 | L23: =K23*J23 -> 0 | N23: =L23-H23 -> 0 | O23: =IF((H23)=0,"",(N23/H23)) -> 
B24: Stranded Meter Recovery | G24: 1 | H24: 0 | K24: =G24 -> 1 | L24: =K24*J24 -> 0 | N24: =L24-H24 -> 0 | O24: =IF((H24)=0,"",(N24/H24)) -> 
G25: 1 | H25: 0 | K25: =G25 -> 1 | L25: 0 | N25: 0
G26: 1 | H26: 0 | K26: 1 | L26: 0 | N26: 0
G27: 1 | H27: 0 | K27: 1 | L27: 0 | N27: 0
B28: Distribution Volumetric Rate | D28: per kW | F28: 2.7127 | G28: =F16 -> 1 | H28: 2.7127 | J28: 2.8002 | K28: 1 | L28: 2.8002 | N28: 0.0875 | O28: =IF((H28)=0,"",(N28/H28)) -> 0.03225568622
B29: Smart Meter Disposition Rider | D29: Monthly | G29: 1 | H29: 0 | K29: 1 | L29: 0 | N29: 0
B30: LRAM & SSM Rate Rider | D30: per kW | G30: =F16 -> 1 | H30: 0 | K30: 1 | L30: 0 | N30: 0
B31: Tax change | D31: per kW | F31: -0.0984 | G31: =F16 -> 1 | H31: -0.0984 | K31: 1 | L31: 0 | N31: 0.0984 | O31: -1
H32: 0 | K32: 0 | L32: 0 | N32: 0
H33: 0 | K33: 0 | L33: 0 | N33: 0
H34: 0 | K34: 0 | L34: 0 | N34: 0
H35: 0 | K35: 0 | L35: 0 | N35: 0
H36: 0 | K36: 0 | L36: 0 | N36: 0
H37: 0 | K37: 0 | L37: 0 | N37: 0
B38: Sub-Total A | H38: =SUM(H22:H37) -> 3.2643 | L38: =SUM(L22:L37) -> 3.4719 | N38: 0.2076 | O38: 0.06359709586
B39: Deferral/Variance Account Disposition Rate Rider | D39: per kW | F39: -1.8739 | G39: =F16 -> 1 | H39: =G39*F39 -> -1.8739 | J39: -1.615 | K39: =G39 -> 1 | L39: =K39*J39 -> -1.615 | N39: 0.2589 | O39: =IF((H39)=0,"",(N39/H39)) -> -0.1381610545
B40: Global Adjustment - Non RPP | D40: per kW | F40: -0.481 | G40: =F16 -> 1 | H40: =G40*F40 -> -0.481 | J40: 0.6944 | K40: 1 | L40: 0.6944 | N40: 1.1754 | O40: =IF((H40)=0,"",(N40/H40)) -> -2.443659044
H41: =G41*F41 -> 0 | K41: 0 | L41: 0 | N41: 0 | O41: =IF((H41)=0,"",(N41/H41)) -> 
H42: =G42*F42 -> 0 | K42: 0 | L42: 0 | N42: 0 | O42: =IF((H42)=0,"",(N42/H42)) -> 
B43: Low Voltage Service Charge | H43: =G43*F43 -> 0 | K43: 0 | L43: 0 | N43: 0 | O43: =IF((H43)=0,"",(N43/H43)) -> 
B44: Smart Meter Entity Charge | K44: 0 | L44: 0 | N44: 0
B45: Sub-Total B - Distribution (includes Sub-Total A) | H45: =SUM(H39:H43)+H38 -> 0.9094 | L45: =SUM(L39:L43)+L38 -> 2.5513 | N45: 1.6419 | O45: =IF((H45)=0,"",(N45/H45)) -> 1.805476138
B46: RTSR - Network | D46: per kW | F46: 2.2708 | G46: =F16*(1+F70) -> 1.042 | H46: =G46*F46 -> 2.3661736 | J46: 2.1263 | K46: =$F$16*(1+$J$70) -> 1.0349 | L46: =K46*J46 -> 2.20050787 | N46: -0.16566573 | O46: -0.07001419084
B47: RTSR - Line and Transformation Connection | D47: per kW | F47: 1.5138 | G47: =G46 -> 1.042 | H47: =G47*F47 -> 1.5773796 | J47: 1.4501 | K47: =$F$16*(1+$J$70) -> 1.0349 | L47: =K47*J47 -> 1.50070849 | N47: -0.07667111 | O47: -0.04860663216
B48: Sub-Total C - Delivery (including Sub-Total B) | H48: =SUM(H45:H47) -> 4.8529532 | L48: =SUM(L45:L47) -> 6.25251636 | N48: 1.39956316 | O48: 0.2883941185
B49: Wholesale Market Service Charge (WMSC) | D49: per kWh | F49: 0.0044 | G49: =$F$17*(1+$F$70) -> 335.524 | H49: =G49*F49 -> 1.4763056 | J49: 0.0044 | K49: =$F$17*(1+$J$70) -> 333.2378 | L49: =K49*J49 -> 1.46624632 | N49: -0.01005928 | O49: -0.006813819578
B50: Rural and Remote Rate Protection (RRRP) | D50: per kWh | F50: 0.0012 | G50: =$F$17*(1+$F$70) -> 335.524 | H50: 0.4026288 | J50: 0.0012 | K50: =$F$17*(1+$J$70) -> 333.2378 | L50: 0.39988536 | N50: -0.00274344 | O50: -0.006813819578
B51: Standard Supply Service Charge | D51: Monthly | F51: 0.25 | G51: 1 | H51: 0.25 | J51: 0.25 | K51: =G51 -> 1 | L51: 0.25 | N51: 0 | O51: 0
B52: Debt Retirement Charge (DRC) | D52: per kWh | F52: 0.007 | G52: =$F$17*(1+$F$70) -> 335.524 | H52: 2.348668 | J52: 0.007 | K52: =$F$17*(1+$J$70) -> 333.2378 | L52: 2.3326646 | N52: -0.0160034 | O52: =IF((H52)=0,"",(N52/H52)) -> -0.006813819578
B53: Energy - RPP - Tier 1 | F53: 0.078 | G53: 0 | H53: =G53*F53 -> 0 | J53: 0.078 | K53: =G53 -> 0 | L53: =K53*J53 -> 0 | N53: 0
B54: Energy - RPP - Tier 2 | F54: 0.091 | G54: 0 | H54: =G54*F54 -> 0 | J54: 0.091 | K54: =G54 -> 0 | L54: =K54*J54 -> 0 | N54: 0
B55: Energy - COP | F55: 0.08545 | G55: =$F$17*(1+$F$70) -> 335.524 | H55: 28.6705258 | J55: 0.08545 | K55: =$F$17*(1+$J$70) -> 333.2378 | L55: 28.47517001 | N55: -0.19535579 | O55: -0.006813819578
B57: Total Bill on RPP (before Taxes) | H57: =SUM(H48:H54) -> 9.3305556 | L57: =SUM(L48:L54) -> 10.70131264 | N57: 1.37075704 | O57: 0.1469105484
B58: HST | F58: 0.13 | H58: =H57*F58 -> 1.212972228 | J58: 0.13 | L58: =L57*J58 -> 1.391170643 | N58: 0.1781984152 | O58: 0.1469105484
B59: Total Bill (including HST) | H59: =H57+H58 -> 10.54352783 | L59: =L57+L58 -> 12.09248328 | N59: 1.548955455 | O59: 0.1469105484
B60: Ontario Clean Energy Benefit 1 | H60: =ROUND(-H59*10%,2) -> -1.05 | L60: =ROUND(-L59*10%,2) -> -1.21 | N60: -0.16 | O60: 0.1523809524
B61: Total Bill on RPP (including OCEB) | H61: =SUM(H59:H60) -> 9.493527828 | L61: =SUM(L59:L60) -> 10.88248328 | N61: 1.388955455 | O61: 0.1463055126
B63: Total Bill | H63: =SUM(H48:H52,H55:H55) -> 38.0010814 | L63: =SUM(L48:L52,L55:L55) -> 39.17648265 | N63: =L63-H63 -> 1.17540125 | O63: =IF((H63)=0,"",(N63/H63)) -> 0.03093073162
B64: HST | F64: 0.13 | H64: =H63*F64 -> 4.940140582 | J64: 0.13 | L64: =L63*J64 -> 5.092942745 | N64: 0.1528021625 | O64: 0.03093073162
B65: Total Bill (including HST) | H65: =H63+H64 -> 42.94122198 | L65: =L63+L64 -> 44.26942539 | N65: 1.328203412 | O65: 0.03093073162
B66: Ontario Clean Energy Benefit 1 | H66: =ROUND(-H65*10%,2) -> -4.29 | L66: =ROUND(-L65*10%,2) -> -4.43 | N66: -0.14 | O66: 0.03263403263
B67: Total Bill (including OCEB) | H67: =H65+H66 -> 38.65122198 | L67: =L65+L66 -> 39.83942539 | N67: 1.188203412 | O67: 0.03074167779
B70: Loss Factor (%) | F70: 0.042 | J70: 0.0349
A72: 1 Applicable to eligible customers only. Refer to the Ontario Clean Energy Benefit Act, 2010.
A74: Note that the "Charge $" columns provide breakdowns of the amounts that each bill component contributes to the total monthly bill at the referenced
A75: consumption level at existing and proposed rates.
A77: Applicants must provide bill impacts for residential at 800 kWh and GS<50kW at 2000 kWh. In addition, their filing should cover the range that is relevant
A78: to their service territory, class by class. A general guideline of consumption levels follows:
A80: Residential (kWh) - 100, 250, 500, 800, 1000, 1500, 2000
A81: GS<50kW (kWh) - 1000, 2000, 5000, 10000, 15000
A82: GS>50kW (kW) - 60, 100, 500, 1000
A83: Large User - range appropriate for utility
A84: Lighting Classes and USL - 150 kWh and 1 kW, range appropriate for utility.

Sheet App.2-W_Bill Impacts - USL
N1: File Number: | O1: =#REF! ->  | T1: 12
N2: Exhibit: | O2: 8
N3: Tab: | O3: 1
N4: Schedule: | O4: 8
N5: Page: | O5: 57
N7: Date: | O7: July 17,2013
B10: Appendix 2-W
B11: Bill Impacts
B14: Customer Class: | D14: USL
D16: Consumption | F16: 0 | G16: kW
D17: Consumption | F17: 150 | G17: kWh
F19: Current Board-Approved | J19: Proposed | N19: Impact
D20: Charge Unit | F20: Rate | G20: Volume | H20: Charge | J20: Rate | K20: Volume | L20: Charge | N20: $ Change | O20: % Change
F21: ($) | H21: ($) | J21: ($) | L21: ($)
B22: Monthly Service Charge | D22: Monthly | F22: 12.06 | G22: 1 | H22: =G22*F22 -> 12.06 | J22: 12.449 | K22: =G22 -> 1 | L22: =K22*J22 -> 12.449 | N22: =L22-H22 -> 0.389 | O22: =IF((H22)=0,"",(N22/H22)) -> 0.03225538972
B23: Smart Meter Rate Adder | G23: 1 | H23: =G23*F23 -> 0 | K23: =G23 -> 1 | L23: =K23*J23 -> 0 | N23: =L23-H23 -> 0 | O23: =IF((H23)=0,"",(N23/H23)) -> 
B24: Stranded Meter Recovery | G24: 1 | H24: 0 | K24: =G24 -> 1 | L24: =K24*J24 -> 0 | N24: =L24-H24 -> 0 | O24: =IF((H24)=0,"",(N24/H24)) -> 
G25: 1 | H25: 0 | K25: =G25 -> 1 | L25: 0 | N25: 0
G26: 1 | H26: 0 | K26: 1 | L26: 0 | N26: 0
G27: 1 | H27: 0 | K27: 1 | L27: 0 | N27: 0
B28: Distribution Volumetric Rate | D28: per kWh | F28: 0.0072 | G28: =F17 -> 150 | H28: 1.08 | J28: ='[2]Distribution Rate Schedule'!$E$16 -> 0.0074 | K28: 150 | L28: 1.11 | N28: 0.03 | O28: =IF((H28)=0,"",(N28/H28)) -> 0.02777777778
B29: Smart Meter Disposition Rider | G29: 1 | H29: 0 | K29: 1 | L29: 0 | N29: 0
B30: LRAM & SSM Rate Rider | D30: per kWh | F30: 0.0093 | G30: =F17 -> 150 | H30: 1.395 | K30: 150 | L30: 0 | N30: -1.395 | O30: -1
B31: Tax change | D31: per kWh | F31: -0.0006 | G31: =F17 -> 150 | H31: -0.09 | K31: 150 | L31: 0 | N31: 0.09 | O31: -1
H32: 0 | K32: 0 | L32: 0 | N32: 0
H33: 0 | K33: 0 | L33: 0 | N33: 0
H34: 0 | K34: 0 | L34: 0 | N34: 0
H35: 0 | K35: 0 | L35: 0 | N35: 0
H36: 0 | K36: 0 | L36: 0 | N36: 0
H37: 0 | K37: 0 | L37: 0 | N37: 0
B38: Sub-Total A | H38: =SUM(H22:H37) -> 14.445 | L38: =SUM(L22:L37) -> 13.559 | N38: -0.886 | O38: -0.06133610246
B39: Deferral/Variance Account Disposition Rate Rider | D39: per kWh | F39: -0.0096 | G39: =F17 -> 150 | H39: =G39*F39 -> -1.44 | J39: -0.005 | K39: =G39 -> 150 | L39: =K39*J39 -> -0.75 | N39: =L39-H39 -> 0.69 | O39: =IF((H39)=0,"",(N39/H39)) -> -0.4791666667
B40: Global Adjustment - Non RPP | F40: 0 | G40: =F16 -> 0 | H40: =G40*F40 -> 0 | J40: 0.0022 | K40: =G40 -> 0 | L40: =K40*J40 -> 0 | N40: =L40-H40 -> 0 | O40: =IF((H40)=0,"",(N40/H40)) -> 
H41: 0 | K41: 0 | L41: 0 | N41: 0
H42: 0 | K42: 0 | L42: 0 | N42: 0
B43: Low Voltage Service Charge | H43: =G43*F43 -> 0 | K43: 0 | L43: =K43*J43 -> 0 | N43: =L43-H43 -> 0 | O43: =IF((H43)=0,"",(N43/H43)) -> 
B44: Smart Meter Entity Charge | K44: 0 | L44: =K44*J44 -> 0 | N44: =L44-H44 -> 0
B45: Sub-Total B - Distribution (includes Sub-Total A) | H45: =SUM(H39:H43)+H38 -> 13.005 | L45: =SUM(L39:L43)+L38 -> 12.809 | N45: =L45-H45 -> -0.196 | O45: =IF((H45)=0,"",(N45/H45)) -> -0.01507112649
B46: RTSR - Network | D46: per kWh | F46: 0.0072 | G46: =F17 -> 150 | H46: =G46*F46 -> 1.08 | J46: 0.0067 | K46: =F17 -> 150 | L46: =K46*J46 -> 1.005 | N46: -0.075 | O46: -0.06944444444
B47: RTSR - Line and Transformation Connection | D47: per kWh | F47: 0.0048 | G47: =F17 -> 150 | H47: =G47*F47 -> 0.72 | J47: 0.0046 | K47: =F17 -> 150 | L47: =K47*J47 -> 0.69 | N47: -0.03 | O47: -0.04166666667
B48: Sub-Total C - Delivery (including Sub-Total B) | H48: =SUM(H45:H47) -> 14.805 | L48: =SUM(L45:L47) -> 14.504 | N48: -0.301 | O48: -0.02033096927
B49: Wholesale Market Service Charge (WMSC) | D49: per kWh | F49: 0.0044 | G49: =F17 -> 150 | H49: =G49*F49 -> 0.66 | J49: 0.0044 | K49: =$F$17*(1+$J$70) -> 155.235 | L49: =K49*J49 -> 0.683034 | N49: 0.023034 | O49: 0.0349
B50: Rural and Remote Rate Protection (RRRP) | D50: per kWh | F50: 0.0012 | G50: =F17 -> 150 | H50: 0.18 | J50: 0.0012 | K50: =$F$17*(1+$J$70) -> 155.235 | L50: 0.186282 | N50: 0.006282 | O50: 0.0349
B51: Standard Supply Service Charge | D51: Monthly | F51: 0.25 | G51: 1 | H51: 0.25 | J51: 0.25 | K51: =G51 -> 1 | L51: 0.25 | N51: 0 | O51: 0
B52: Debt Retirement Charge (DRC) | D52: per kWh | F52: 0.007 | G52: =F17 -> 150 | H52: 1.05 | J52: 0.007 | K52: =$F$17*(1+$J$70) -> 155.235 | L52: 1.086645 | N52: 0.036645 | O52: =IF((H52)=0,"",(N52/H52)) -> 0.0349
B53: Energy - RPP - Tier 1 | F53: 0.078 | G53: 0 | H53: =G53*F53 -> 0 | J53: 0.078 | K53: 0 | L53: =K53*J53 -> 0 | N53: 0
B54: Energy - RPP - Tier 2 | F54: 0.091 | G54: 0 | H54: =G54*F54 -> 0 | J54: 0.091 | K54: 0 | L54: =K54*J54 -> 0 | N54: 0
B55: Energy - COP | D55: per kWh | F55: 0.08545 | G55: =F17 -> 150 | H55: 12.8175 | J55: 0.08545 | K55: =$F$17*(1+$J$70) -> 155.235 | L55: 13.26483075 | N55: 0.44733075 | O55: 0.0349
B57: Total Bill on RPP (before Taxes) | H57: =SUM(H48:H54) -> 16.945 | L57: =SUM(L48:L54) -> 16.709961 | N57: -0.235039 | O57: -0.01387069932
B58: HST | F58: 0.13 | H58: =H57*F58 -> 2.20285 | J58: 0.13 | L58: =L57*J58 -> 2.17229493 | N58: -0.03055507 | O58: -0.01387069932
B59: Total Bill (including HST) | H59: =H57+H58 -> 19.14785 | L59: =L57+L58 -> 18.88225593 | N59: -0.26559407 | O59: -0.01387069932
B60: Ontario Clean Energy Benefit 1 | H60: =ROUND(-H59*10%,2) -> -1.91 | L60: =ROUND(-L59*10%,2) -> -1.89 | N60: 0.02 | O60: -0.01047120419
B61: Total Bill on RPP (including OCEB) | H61: =SUM(H59:H60) -> 17.23785 | L61: =SUM(L59:L60) -> 16.99225593 | N61: -0.24559407 | O61: -0.0142473725
B63: Total Bill (before Taxes) | H63: =SUM(H48:H52,H55:H55) -> 29.7625 | L63: =SUM(L48:L52,L55:L55) -> 29.97479175 | N63: =L63-H63 -> 0.21229175 | O63: =IF((H63)=0,"",(N63/H63)) -> 0.007132860143
B64: HST | F64: 0.13 | H64: =H63*F64 -> 3.869125 | J64: 0.13 | L64: =L63*J64 -> 3.896722927 | N64: 0.0275979275 | O64: 0.007132860143
B65: Total Bill (including HST) | H65: =H63+H64 -> 33.631625 | L65: =L63+L64 -> 33.87151468 | N65: 0.2398896775 | O65: 0.007132860143
B66: Ontario Clean Energy Benefit 1 | H66: =ROUND(-H65*10%,2) -> -3.36 | L66: =ROUND(-L65*10%,2) -> -3.39 | N66: -0.03 | O66: 0.008928571429
B67: Total Bill (including OCEB) | H67: =H65+H66 -> 30.271625 | L67: =L65+L66 -> 30.48151468 | N67: 0.2098896775 | O67: 0.00693354511
B70: Loss Factor (%) | F70: 0.042 | J70: 0.0349
A72: 1 Applicable to eligible customers only. Refer to the Ontario Clean Energy Benefit Act, 2010.
A74: Note that the "Charge $" columns provide breakdowns of the amounts that each bill component contributes to the total monthly bill at the referenced
A75: consumption level at existing and proposed rates.
A77: Applicants must provide bill impacts for residential at 800 kWh and GS<50kW at 2000 kWh. In addition, their filing should cover the range that is relevant
A78: to their service territory, class by class. A general guideline of consumption levels follows:
A80: Residential (kWh) - 100, 250, 500, 800, 1000, 1500, 2000
A81: GS<50kW (kWh) - 1000, 2000, 5000, 10000, 15000
A82: GS>50kW (kW) - 60, 100, 500, 1000
A83: Large User - range appropriate for utility
A84: Lighting Classes and USL - 150 kWh and 1 kW, range appropriate for utility.

Sheet App.2-W_Bill Impacts -Embedded
N1: File Number: | O1: =#REF! ->  | T1: 13
N2: Exhibit: | O2: 8
N3: Tab: | O3: 1
N4: Schedule: | O4: 8
N5: Page: | O5: 58
N7: Date: | O7: July 17,2013
B10: Appendix 2-W
B11: Bill Impacts
B14: Customer Class: | D14: Embedded Distributor
D16: Consumption | F16: 158473 | G16: kW
D17: Consumption | F17: 78857860 | G17: kWh
F19: Current Board-Approved | J19: Proposed | N19: Impact
D20: Charge Unit | F20: Rate | G20: Volume | H20: Charge | J20: Rate | K20: Volume | L20: Charge | N20: $ Change | O20: % Change
F21: ($) | H21: ($) | J21: ($) | L21: ($)
B22: Monthly Service Charge | D22: Monthly | F22: 293.71 | G22: 1 | H22: =G22*F22 -> 293.71 | J22: 277.82 | K22: =G22 -> 1 | L22: =K22*J22 -> 277.82 | N22: =L22-H22 -> -15.89 | O22: =IF((H22)=0,"",(N22/H22)) -> -0.05410098396
B23: Smart Meter Rate Adder | D23: Monthly | G23: 1 | H23: =G23*F23 -> 0 | K23: =G23 -> 1 | L23: =K23*J23 -> 0 | N23: =L23-H23 -> 0 | O23: =IF((H23)=0,"",(N23/H23)) -> 
B24: Stranded Meter Recovery | G24: 1 | H24: 0 | K24: =G24 -> 1 | L24: =K24*J24 -> 0 | N24: =L24-H24 -> 0 | O24: =IF((H24)=0,"",(N24/H24)) -> 
G25: 1 | H25: 0 | K25: =G25 -> 1 | L25: 0 | N25: 0
G26: 1 | H26: 0 | K26: 1 | L26: 0 | N26: 0
G27: 1 | H27: 0 | K27: 1 | L27: 0 | N27: 0
B28: Distribution Volumetric Rate | D28: per kW | F28: 1.7488 | G28: =F16 -> 158473 | H28: 277137.5824 | J28: 1.6542 | K28: 158473 | L28: 262146.0366 | N28: -14991.5458 | O28: =IF((H28)=0,"",(N28/H28)) -> -0.05409423605
B29: Smart Meter Disposition Rider | D29: Monthly | G29: 1 | H29: 0 | K29: 1 | L29: 0 | N29: 0
B30: LRAM & SSM Rate Rider | D30: per kW | F30: 0 | G30: =F16 -> 158473 | H30: 0 | K30: 158473 | L30: 0 | N30: 0
B31: Tax change | D31: per kW | F31: -0.0307 | G31: =F16 -> 158473 | H31: -4865.1211 | K31: 158473 | L31: 0 | N31: 4865.1211 | O31: -1
H32: 0 | K32: 0 | L32: 0 | N32: 0
H33: 0 | K33: 0 | L33: 0 | N33: 0
H34: 0 | K34: 0 | L34: 0 | N34: 0
H35: 0 | K35: 0 | L35: 0 | N35: 0
H36: 0 | K36: 0 | L36: 0 | N36: 0
H37: 0 | K37: 0 | L37: 0 | N37: 0
B38: Sub-Total A | H38: =SUM(H22:H37) -> 272566.1713 | L38: =SUM(L22:L37) -> 262423.8566 | N38: -10142.3147 | O38: -0.03721046765
B39: Deferral/Variance Account Disposition Rate Rider | D39: per kW | F39: 0 | G39: =F16 -> 158473 | H39: =G39*F39 -> 0 | K39: =G39 -> 158473 | L39: =K39*J39 -> 0 | N39: =L39-H39 -> 0 | O39: =IF((H39)=0,"",(N39/H39)) -> 
B40: Global Adjustment - Non RPP | D40: per kW | F40: 0 | G40: =F16 -> 158473 | H40: =G40*F40 -> 0 | K40: =G40 -> 158473 | L40: =K40*J40 -> 0 | N40: =L40-H40 -> 0 | O40: =IF((H40)=0,"",(N40/H40)) -> 
H41: 0 | K41: 0 | L41: 0 | N41: 0
H42: 0 | K42: 0 | L42: 0 | N42: 0
B43: Low Voltage Service Charge | H43: =G43*F43 -> 0 | K43: 0 | L43: =K43*J43 -> 0 | N43: =L43-H43 -> 0 | O43: =IF((H43)=0,"",(N43/H43)) -> 
B44: Smart Meter Entity Charge | K44: 0 | L44: =K44*J44 -> 0 | N44: =L44-H44 -> 0
B45: Sub-Total B - Distribution (includes Sub-Total A) | H45: =SUM(H39:H43)+H38 -> 272566.1713 | L45: =SUM(L39:L43)+L38 -> 262423.8566 | N45: =L45-H45 -> -10142.3147 | O45: =IF((H45)=0,"",(N45/H45)) -> -0.03721046765
B46: RTSR - Network | D46: per kW | F46: 2.4601 | G46: =F16*(1+F70) -> 158473 | H46: =G46*F46 -> 389859.4273 | J46: 2.3036 | K46: =$F$16*(1+$J$70) -> 158473 | L46: =K46*J46 -> 365058.4028 | N46: -24801.0245 | O46: -0.06361530019
B47: RTSR - Line and Transformation Connection | D47: per kW | F47: 1.6398 | G47: =G46 -> 158473 | H47: =G47*F47 -> 259864.0254 | J47: 1.5708 | K47: =$F$16*(1+$J$70) -> 158473 | L47: =K47*J47 -> 248929.3884 | N47: -10934.637 | O47: -0.04207830223
B48: Sub-Total C - Delivery (including Sub-Total B) | H48: =SUM(H45:H47) -> 922289.624 | L48: =SUM(L45:L47) -> 876411.6478 | N48: -45877.9762 | O48: -0.04974356754
B49: Wholesale Market Service Charge (WMSC) | D49: per kWh | F49: 0.0044 | G49: =$F$17*(1+$F$70) -> 78857860 | H49: =G49*F49 -> 346974.584 | J49: 0.0044 | K49: =$F$17*(1+$J$70) -> 78857860 | L49: =K49*J49 -> 346974.584 | N49: 0 | O49: 0
B50: Rural and Remote Rate Protection (RRRP) | D50: per kWh | F50: 0.0012 | G50: =$F$17*(1+$F$70) -> 78857860 | H50: 94629.432 | J50: 0.0012 | K50: =$F$17*(1+$J$70) -> 78857860 | L50: 94629.432 | N50: 0 | O50: 0
B51: Standard Supply Service Charge | D51: Monthly | F51: 0.25 | G51: 1 | H51: 0.25 | J51: 0.25 | K51: =G51 -> 1 | L51: 0.25 | N51: 0 | O51: 0
B52: Debt Retirement Charge (DRC) | D52: per kWh | F52: 0.007 | G52: =$F$17*(1+$F$70) -> 78857860 | H52: 552005.02 | J52: 0.007 | K52: =$F$17*(1+$J$70) -> 78857860 | L52: 552005.02 | N52: 0 | O52: =IF((H52)=0,"",(N52/H52)) -> 0
B53: Energy - RPP - Tier 1 | F53: 0.078 | G53: 0 | H53: =G53*F53 -> 0 | J53: 0.078 | K53: 0 | L53: =K53*J53 -> 0 | N53: 0
B54: Energy - RPP - Tier 2 | F54: 0.091 | G54: 0 | H54: =G54*F54 -> 0 | J54: 0.091 | K54: 0 | L54: =K54*J54 -> 0 | N54: 0
B55: Energy - COP | F55: 0.08545 | G55: =$F$17*(1+$F$70) -> 78857860 | H55: 6738404.137 | J55: 0.08545 | K55: =$F$17*(1+$J$70) -> 78857860 | L55: 6738404.137 | N55: 0 | O55: 0
B57: Total Bill on RPP (before Taxes) | H57: =SUM(H48:H54) -> 1915898.91 | L57: =SUM(L48:L54) -> 1870020.934 | N57: -45877.9762 | O57: -0.0239459274
B58: HST | F58: 0.13 | H58: =H57*F58 -> 249066.8583 | J58: 0.13 | L58: =L57*J58 -> 243102.7214 | N58: -5964.136906 | O58: -0.0239459274
B59: Total Bill (including HST) | H59: =H57+H58 -> 2164965.768 | L59: =L57+L58 -> 2113123.655 | N59: -51842.11311 | O59: -0.0239459274
B60: Ontario Clean Energy Benefit 1 | H60: =ROUND(-H59*10%,2) -> -216496.58 | L60: =ROUND(-L59*10%,2) -> -211312.37 | N60: 5184.21 | O60: -0.02394592099
B61: Total Bill on RPP (including OCEB) | H61: =SUM(H59:H60) -> 1948469.188 | L61: =SUM(L59:L60) -> 1901811.285 | N61: -46657.90311 | O61: -0.02394592811
B63: Total Bill (before Taxes) | H63: =SUM(H48:H52,H55:H55) -> 8654303.047 | L63: =SUM(L48:L52,L55:L55) -> 8608425.071 | N63: =L63-H63 -> -45877.9762 | O63: =IF((H63)=0,"",(N63/H63)) -> -0.005301175144
B64: HST | F64: 0.13 | H64: =H63*F64 -> 1125059.396 | J64: 0.13 | L64: =L63*J64 -> 1119095.259 | N64: -5964.136906 | O64: -0.005301175144
B65: Total Bill (including HST) | H65: =H63+H64 -> 9779362.443 | L65: =L63+L64 -> 9727520.33 | N65: -51842.11311 | O65: -0.005301175144
B66: Ontario Clean Energy Benefit 1 | H66: =ROUND(-H65*10%,2) -> -977936.24 | L66: =ROUND(-L65*10%,2) -> -972752.03 | N66: 5184.21 | O66: -0.005301173827
B67: Total Bill (including OCEB) | H67: =H65+H66 -> 8801426.203 | L67: =L65+L66 -> 8754768.3 | N67: -46657.90311 | O67: -0.00530117529
B70: Loss Factor (%) | F70: 0 | J70: 0
A72: 1 Applicable to eligible customers only. Refer to the Ontario Clean Energy Benefit Act, 2010.
A74: Note that the "Charge $" columns provide breakdowns of the amounts that each bill component contributes to the total monthly bill at the referenced
A75: consumption level at existing and proposed rates.
A77: Applicants must provide bill impacts for residential at 800 kWh and GS<50kW at 2000 kWh. In addition, their filing should cover the range that is relevant
A78: to their service territory, class by class. A general guideline of consumption levels follows:
A80: Residential (kWh) - 100, 250, 500, 800, 1000, 1500, 2000
A81: GS<50kW (kWh) - 1000, 2000, 5000, 10000, 15000
A82: GS>50kW (kW) - 60, 100, 500, 1000
A83: Large User - range appropriate for utility
A84: Lighting Classes and USL - 150 kWh and 1 kW, range appropriate for utility.
